fUSD/lending_fUSD_20240506
["ID","MTS","AMOUNT","RATE_DAILY","PERIOD"]
[326469742,1714957905521,-5646.5,0.00012988,2]
[326469752,1714958194651,151.0,0.00020877,120]
[326469754,1714958592313,151.0,0.00020871,120]
[326469779,1714959034087,-934.60434087,0.00012454,2]
[326469802,1714959038974,-435.4275,0.00012454,2]
[326469803,1714959038986,-3042.76872809,0.00012454,2]
[326469804,1714959038996,-4270.88590529,0.00012454,2]
[326469805,1714959039005,-1243.3075394,0.00012455,2]
[326469806,1714959039014,-589.12,0.0001259,2]
[326469807,1714959039024,-170.4,0.00012726,2]
[326469808,1714959039033,-410.88,0.00012785,2]
[326469809,1714959039043,-250.0,0.00012789,2]
[326469810,1714959039052,-3245.1,0.00012789,2]
[326469811,1714959039327,-185.71,0.00012881,2]
[326469812,1714959039338,-756.4891,0.0001289,2]
[326469813,1714959039348,-7500.0,0.000129,2]
[326469814,1714959039357,-34082.14365974,0.000129,2]
[326469815,1714959039367,-156.70518503,0.000129,2]
[326469816,1714959039376,-313.41818877,0.000129,2]
[326469817,1714959039387,-5637.48388091,0.000129,2]
[326469818,1714959039396,-2228.54326873,0.00012989,2]
[326469819,1714959039408,-499.99,0.0001299,2]
[326469820,1714959039418,-19999.99,0.0001299,2]
[326469821,1714959039427,-4986.35,0.0001299,2]
[326469822,1714959039436,-29999.99,0.0001299,2]
[326469823,1714959039451,-9470.72454403,0.0001299,2]
[326469827,1714959039528,-8674.58720317,0.0001299,2]
[326469828,1714959039541,-9511.5,0.0001299,2]
[326469838,1714959040953,-1060.02679678,0.0001299,2]
[326469839,1714959040966,-1283.15145602,0.0001299,2]
[326469840,1714959040975,-1389.6816931,0.0001299,2]
[326469841,1714959040985,-175.99846074,0.0001299,2]
[326469842,1714959041232,-3000.92524176,0.0001299,2]
[326469843,1714959041244,-554.49841702,0.0001299,2]
[326469857,1714959043794,-1243.44223323,0.00012453,2]
[326469858,1714959043803,-240.0626,0.0001289,2]
[326469859,1714959043812,-516.49516677,0.0001299,2]
[326469860,1714959043824,-661.66608519,0.0001299,2]
[326469861,1714959044034,-238.93718602,0.0001299,2]
[326469862,1714959044043,-221.13373252,0.0001299,2]
[326469863,1714959044055,-2306.6388282,0.0001299,2]
[326469864,1714959044379,-805.43476892,0.0001299,2]
[326469865,1714959044390,-21050.72542516,0.0001299,2]
[326469866,1714959044400,-1791.6381228,0.0001299,2]
[326469867,1714959044410,-1002.1784959,0.0001299,2]
[326469868,1714959044419,-17329.417627,0.0001299,2]
[326469869,1714959044428,-359.74157991,0.00012999,2]
[326469870,1714959044438,-1187.05444494,0.00012999,2]
[326469872,1714959044455,-879647.38579082,0.00013,2]
[326469873,1714959044466,-2520.92488537,0.00013,2]
[326469874,1714959044478,-11962.95409776,0.00013,2]
[326469892,1714959047286,-2489.80474068,0.00013,2]
[326469893,1714959047299,-13456.45156548,0.00013,2]
[326469913,1714959199276,151.0,0.00020906,30]
[326469914,1714959199392,151.0,0.00020488,120]
[326469917,1714959391649,1282.0,0.00021,30]
[326469920,1714959644564,151.0,0.00020993,30]
[326469921,1714959644634,151.0,0.00020573,120]
[326469943,1714960232258,-527.86451827,0.0001156,2]
[326469944,1714960232268,-1243.44223323,0.00011561,2]
[326469945,1714960232278,-533.84746218,0.00011561,2]
[326469946,1714960232288,-3767.7374,0.00011598,2]
[326469947,1714960232297,-250.0,0.00011627,2]
[326469948,1714960232315,-514.42,0.00011669,2]
[326469949,1714960232324,-2804.112292,0.00011697,2]
[326469950,1714960232333,-751.70985935,0.00011698,2]
[326469951,1714960232343,-14309.13,0.00011699,2]
[326469952,1714960232352,-328.71,0.00011901,2]
[326469953,1714960232362,-150.0,0.00011901,2]
[326469954,1714960232371,-280.22,0.00011954,2]
[326469956,1714960232389,-851.2,0.00011954,2]
[326469958,1714960232398,-10284.82,0.00011954,2]
[326469960,1714960232407,-499.99,0.00011954,2]
[326469962,1714960232416,-170.86,0.00011954,2]
[326469964,1714960232427,-170.86,0.00012162,2]
[326469966,1714960232436,-170.86,0.0001237,2]
[326469968,1714960232446,-1822.78,0.000124,2]
[326469970,1714960232460,-154.07,0.000124,2]
[326469972,1714960232470,-350.98,0.000124,2]
[326469974,1714960232479,-150.0,0.000124,2]
[326469976,1714960232489,-162.97,0.000124,2]
[326469978,1714960232498,-150.0,0.000124,2]
[326469980,1714960232508,-150.0,0.000124,2]
[326469982,1714960232517,-170.86,0.00012577,2]
[326469984,1714960232533,-1033.4,0.000127,2]
[326469986,1714960232542,-414.53,0.000127,2]
[326469988,1714960232551,-414.53,0.000127,2]
[326469990,1714960232560,-445.42,0.000127,2]
[326469992,1714960232569,-911.93,0.000127,2]
[326469994,1714960232578,-414.53,0.00012788,2]
[326469996,1714960232587,-289.70312432,0.00012797,2]
[326469997,1714960232597,-20866.8269,0.00012798,2]
[326469999,1714960232610,-307.5999,0.00012798,2]
[326470001,1714960232620,-1000.0,0.00012798,2]
[326470003,1714960232629,-2500.0,0.00012798,2]
[326470005,1714960232639,-171.66994055,0.00012799,2]
[326470007,1714960232648,-1005.27,0.000128,2]
[326470008,1714960232657,-361.33958076,0.00012885,2]
[326470010,1714960232667,-2228.42511418,0.00012886,2]
[326470012,1714960232683,-167.8985121,0.00012888,2]
[326470014,1714960232692,-19715.0562,0.0001289,2]
[326470016,1714960232701,-11476.9849,0.0001289,2]
[326470018,1714960232711,-7500.0,0.0001289,2]
[326470020,1714960232720,-500.0,0.00012895,2]
[326470022,1714960232729,-500.0,0.00012896,2]
[326470024,1714960232740,-500.0,0.00012896,2]
[326470026,1714960232752,-227.39526322,0.00012898,2]
[326470028,1714960232761,-208.16884983,0.00012898,2]
[326470030,1714960232771,-318.30948126,0.00012898,2]
[326470032,1714960232780,-66210.19022478,0.00012898,2]
[326470034,1714960232793,-15504.31610724,0.00012898,2]
[326470036,1714960232804,-896.99068152,0.00012898,2]
[326470038,1714960232822,-544.0998858,0.00012898,2]
[326470040,1714960232833,-626.71201654,0.00012898,2]
[326470042,1714960232846,-346.48303694,0.00012898,2]
[326470045,1714960232857,-418.90217464,0.00012898,2]
[326470063,1714960233058,-781.95019923,0.00012898,2]
[326470065,1714960233071,-1806.00192747,0.00012898,2]
[326470067,1714960233083,-827.13712285,0.00012898,2]
[326470069,1714960233094,-205645.78859138,0.00012898,2]
[326470071,1714960233111,-6970.88873846,0.00012898,2]
[326470074,1714960233123,-7811.50183934,0.00012898,2]
[326470076,1714960233135,-344970.27895492,0.00012898,2]
[326470078,1714960233148,-33479.86235723,0.00012898,2]
[326470080,1714960233157,-161.53406666,0.00012899,2]
[326470082,1714960233167,-171.32029788,0.00012899,2]
[326470084,1714960233183,-667.36237526,0.00012899,2]
[326470086,1714960233194,-259.86200001,0.00012899,2]
[326470088,1714960233205,-357.4799971,0.00012899,2]
[326470177,1714960238591,-307.32771504,0.00012899,2]
[326470178,1714960238602,-633.8742985,0.00012899,2]
[326470179,1714960238615,-835.11710452,0.00012899,2]
[326470180,1714960238626,-14678.14265799,0.00012899,2]
[326470181,1714960238638,-580.55516096,0.00012899,2]
[326470182,1714960238653,-6628.30439943,0.00012899,2]
[326470183,1714960238670,-4051.25650695,0.00012899,2]
[326470184,1714960238681,-156.55321874,0.000129,2]
[326470185,1714960238690,-169.2783904,0.000129,2]
[326470186,1714960238699,-23184.74009316,0.000129,2]
[326470187,1714960238710,-9947.38235569,0.000129,2]
[326470188,1714960238719,-158.12410266,0.000129,2]
[326470189,1714960238731,-4937.03461841,0.000129,2]
[326470190,1714960238741,-1191.38775659,0.000129,2]
[326470191,1714960238752,-287.63374767,0.000129,2]
[326470192,1714960238762,-173.13322766,0.000129,2]
[326470193,1714960238772,-520.32,0.00012959,2]
[326470194,1714960238781,-11671.4015023,0.0001299,2]
[326470195,1714960238790,-5561.9416778,0.0001299,2]
[326470196,1714960238803,-778.084847,0.0001299,2]
[326470197,1714960238817,-263.6675254,0.0001299,2]
[326470198,1714960238827,-40846.8005188,0.0001299,2]
[326470199,1714960238836,-604.8339613,0.0001299,2]
[326470200,1714960238845,-540.7234257,0.0001299,2]
[326470201,1714960238856,-1955.0710287,0.0001299,2]
[326470202,1714960238865,-689.49273652,0.00012999,2]
[326470203,1714960238874,-1187.05444494,0.00012999,2]
[326470204,1714960238893,-47267.91252289,0.00013,2]
[326470238,1714960240609,-445.43688046,0.00013,2]
[326470239,1714960240621,-261.355,0.00013,2]
[326470240,1714960240633,-7185.45303197,0.00013,2]
[326470241,1714960240645,-722.6534128,0.00013,2]
[326470242,1714960240660,-323492.07547934,0.00013,2]
[326470243,1714960240676,-328.30508743,0.00013,2]
[326470244,1714960241001,-1172582.47759528,0.00013,2]
[326470245,1714960241011,-928002.23505033,0.00013,2]
[326470246,1714960241021,-151.899987,0.00013,2]
[326470247,1714960241030,-151.0,0.00013,2]
[326470248,1714960241040,-151.0,0.00013,2]
[326470249,1714960241056,-157.717835,0.00013,2]
[326470250,1714960241070,-3000.0,0.00013,2]
[326470251,1714960241079,-216.966286,0.00013,2]
[326470252,1714960241099,-151.0,0.00013,2]
[326470253,1714960241110,-261.597292,0.00013,2]
[326470254,1714960241119,-247.2906,0.00013,2]
[326470255,1714960241135,-247.2906,0.00013,2]
[326470256,1714960241145,-415.224391,0.00013,2]
[326470257,1714960241155,-10122.0,0.00013006,2]
[326470258,1714960241167,-275.37,0.00013151,2]
[326470259,1714960241177,-229.48,0.00013151,2]
[326470260,1714960241188,-191.23,0.00013151,2]
[326470261,1714960241199,-159.36,0.00013151,2]
[326470262,1714960241216,-796.82,0.00013151,2]
[326470263,1714960241227,-150.0,0.00013151,2]
[326470264,1714960241237,-150.0,0.00013151,2]
[326470265,1714960241247,-522.83,0.00013151,2]
[326470266,1714960241257,-522.83,0.00013151,2]
[326470267,1714960241267,-150.0,0.00013151,2]
[326470268,1714960241277,-150.0,0.00013151,2]
[326470269,1714960241290,-2301.0,0.00013209,2]
[326470270,1714960241301,-971.0,0.00013209,2]
[326470271,1714960241311,-463.0,0.00013209,2]
[326470272,1714960241322,-1397.0,0.00013209,2]
[326470273,1714960241332,-1241.296,0.00013209,2]
[326470274,1714960241342,-1259.0,0.00013209,2]
[326470275,1714960241352,-660.941,0.00013209,2]
[326470276,1714960241364,-611.0,0.00013209,2]
[326470277,1714960241378,-808.0,0.00013209,2]
[326470278,1714960241388,-1787.0,0.00013209,2]
[326470279,1714960241398,-438.0,0.00013209,2]
[326470280,1714960241408,-1477.0,0.00013209,2]
[326470281,1714960241418,-2451.0,0.00013209,2]
[326470282,1714960241428,-421.0,0.00013209,2]
[326470283,1714960241439,-151.583,0.00013209,2]
[326470284,1714960241453,-150.45,0.00013209,2]
[326470285,1714960241463,-1139.0,0.00013209,2]
[326470286,1714960241473,-215.0,0.00013209,2]
[326470287,1714960241483,-476.577,0.00013209,2]
[326470288,1714960241493,-1644.0,0.00013209,2]
[326470289,1714960241502,-3152.0,0.00013209,2]
[326470290,1714960241512,-289.22,0.00013209,2]
[326470291,1714960241524,-37783.0,0.00013209,2]
[326470292,1714960241538,-2294.0,0.00013209,2]
[326470293,1714960241548,-5742.0,0.00013209,2]
[326470294,1714960241558,-5904.0,0.00013209,2]
[326470295,1714960241567,-210.0,0.00013209,2]
[326470296,1714960241577,-251.844,0.00013209,2]
[326470297,1714960241587,-161.0,0.00013209,2]
[326470298,1714960241602,-161.054,0.00013209,2]
[326470299,1714960241615,-250.0,0.00013209,2]
[326470300,1714960241625,-1058.0,0.00013209,2]
[326470301,1714960241635,-14783.0,0.0001325,2]
[326470302,1714960241645,-299.48,0.00013284,2]
[326470303,1714960241655,-150.0,0.00013284,2]
[326470304,1714960241665,-427.89,0.00013284,2]
[326470305,1714960241677,-217.83,0.00013284,2]
[326470306,1714960241693,-152.7,0.00013284,2]
[326470307,1714960241703,-419.76,0.00013284,2]
[326470308,1714960241713,-150.0,0.00013284,2]
[326470309,1714960241722,-163.09,0.00013284,2]
[326470310,1714960241732,-163.09,0.00013284,2]
[326470311,1714960241742,-150.0,0.00013284,2]
[326470312,1714960241751,-328.71,0.00013388,2]
[326470313,1714960241772,-966.45,0.00013425,2]
[326470314,1714960241782,-467.95,0.00013425,2]
[326470315,1714960241791,-200.0,0.00013699,2]
[326470316,1714960241801,-200.0,0.00013699,2]
[326470317,1714960241810,-200.0,0.00013699,2]
[326470318,1714960241820,-200.0,0.00013699,2]
[326470319,1714960241830,-1000.0,0.00013699,2]
[326470320,1714960241842,-1000.0,0.00013699,2]
[326470321,1714960241851,-1000.0,0.00013699,2]
[326470322,1714960241860,-1000.0,0.00013699,2]
[326470323,1714960241870,-200.0,0.00013699,2]
[326470324,1714960241879,-200.0,0.00013699,2]
[326470325,1714960241888,-200.0,0.00013699,2]
[326470326,1714960241897,-200.0,0.00013699,2]
[326470327,1714960241907,-200.0,0.00013699,2]
[326470328,1714960241920,-500.0,0.00013699,2]
[326470329,1714960241934,-200.0,0.00013699,2]
[326470330,1714960241944,-2751.0,0.00013699,2]
[326470331,1714960241954,-289.0,0.000137,2]
[326470332,1714960241966,-150.0,0.00013781,2]
[326470333,1714960241978,-150.0,0.00013781,2]
[326470334,1714960241988,-150.0,0.00013781,2]
[326470335,1714960242001,-2975.06510715,0.00013782,2]
[326470336,1714960242012,-671.29,0.00013826,2]
[326470337,1714960242023,-522.83,0.00013973,2]
[326470338,1714960242034,-150.0,0.00013973,2]
[326470339,1714960242045,-150.0,0.00013973,2]
[326470340,1714960242057,-281.98648378,0.00014,2]
[326470341,1714960242066,-150.44,0.00014,2]
[326470342,1714960242080,-150.44,0.00014,2]
[326470343,1714960242090,-150.44,0.00014,2]
[326470344,1714960242100,-150.44,0.00014,2]
[326470345,1714960242110,-150.44,0.00014,2]
[326470346,1714960242120,-150.44,0.00014,2]
[326470347,1714960242132,-150.44,0.00014,2]
[326470348,1714960242142,-150.44,0.00014,2]
[326470349,1714960242153,-150.44,0.00014,2]
[326470350,1714960242168,-150.44,0.00014,2]
[326470351,1714960242178,-150.44,0.00014,2]
[326470352,1714960242189,-150.44,0.00014,2]
[326470353,1714960242199,-150.44,0.00014,2]
[326470354,1714960242209,-150.44,0.00014,2]
[326470355,1714960242220,-150.44,0.00014,2]
[326470356,1714960242234,-150.44,0.00014,2]
[326470357,1714960242247,-150.44,0.00014,2]
[326470358,1714960242258,-150.44,0.00014,2]
[326470359,1714960242269,-150.44,0.00014,2]
[326470360,1714960242279,-150.44,0.00014,2]
[326470361,1714960242289,-150.44,0.00014,2]
[326470362,1714960242301,-150.44,0.00014,2]
[326470363,1714960242312,-150.44,0.00014,2]
[326470364,1714960242325,-150.44,0.00014,2]
[326470365,1714960242335,-150.44,0.00014,2]
[326470366,1714960242345,-150.44,0.00014,2]
[326470367,1714960242355,-150.44,0.00014,2]
[326470368,1714960242365,-150.44,0.00014,2]
[326470369,1714960242375,-150.44,0.00014,2]
[326470370,1714960242385,-150.44,0.00014,2]
[326470371,1714960242398,-150.44,0.00014,2]
[326470372,1714960242410,-150.44,0.00014,2]
[326470373,1714960242420,-150.44,0.00014,2]
[326470374,1714960242430,-150.44,0.00014,2]
[326470375,1714960242442,-150.44,0.00014,2]
[326470376,1714960242453,-150.44,0.00014,2]
[326470377,1714960242463,-150.44,0.00014,2]
[326470378,1714960242473,-150.44,0.00014,2]
[326470379,1714960242485,-150.44,0.00014,2]
[326470380,1714960242495,-150.44,0.00014,2]
[326470381,1714960242504,-150.44,0.00014,2]
[326470382,1714960242514,-150.44,0.00014,2]
[326470383,1714960242526,-150.44,0.00014,2]
[326470384,1714960242536,-150.44,0.00014,2]
[326470385,1714960242546,-150.44,0.00014,2]
[326470386,1714960242559,-150.44,0.00014,2]
[326470387,1714960242569,-150.44,0.00014,2]
[326470388,1714960242579,-150.44,0.00014,2]
[326470389,1714960242588,-150.44,0.00014,2]
[326470390,1714960242599,-150.44,0.00014,2]
[326470391,1714960242608,-150.44,0.00014,2]
[326470392,1714960242619,-150.44,0.00014,2]
[326470393,1714960242630,-170.4,0.00014317,2]
[326470394,1714960242641,-185.71,0.00014491,2]
[326470395,1714960242651,-33132.12244875,0.00014535,2]
[326470396,1714960242661,-150.0,0.00014847,2]
[326470397,1714960242671,-300.0,0.00014847,2]
[326470398,1714960242681,-419.76,0.00014847,2]
[326470399,1714960242691,-163.09,0.00014847,2]
[326470400,1714960242701,-328.71,0.00014876,2]
[326470402,1714960242713,-8086.63433012,0.00015,2]
[326470403,1714960242725,-302.24345875,0.00015,2]
[326470404,1714960242735,-618.02616279,0.00015,2]
[326470405,1714960242744,-257.21717517,0.00015,2]
[326470406,1714960242755,-484.0,0.00015,2]
[326470407,1714960242765,-191.93174761,0.00015,2]
[326470408,1714960242775,-155.43624407,0.00015,2]
[326470409,1714960242788,-200.0,0.00015,2]
[326470410,1714960242798,-151.0,0.00015,2]
[326470411,1714960242807,-182.541331,0.00015,2]
[326470412,1714960242817,-300.0,0.00015068,2]
[326470413,1714960242827,-212.68913261,0.00015081,2]
[326470414,1714960242836,-188.56287425,0.00015081,2]
[326470415,1714960242847,-305.77346972,0.00015081,2]
[326470416,1714960242857,-175.48997939,0.00015081,2]
[326470417,1714960242871,-156.94283025,0.00015081,2]
[326470418,1714960242880,-155.11864282,0.00015081,2]
[326470419,1714960242890,-160.80464312,0.00015081,2]
[326470421,1714960242900,-157.21130106,0.00015081,2]
[326470422,1714960242910,-274.81323144,0.00015081,2]
[326470423,1714960242920,-4937.03461837,0.00015099,2]
[326470424,1714960242930,-150.44,0.00015354,2]
[326470425,1714960242944,-151.0,0.00015364,2]
[326470426,1714960242955,-247.2906,0.00015364,2]
[326470427,1714960242969,-247.2906,0.00015364,2]
[326470428,1714960242979,-10000.0,0.00015364,2]
[326470429,1714960242989,-419.76,0.0001539,2]
[326470430,1714960242999,-150.0,0.0001539,2]
[326470431,1714960243009,-671.29,0.00015554,2]
[326470432,1714960243024,-413.6,0.00015664,2]
[326470433,1714960243035,-911.57,0.00015664,2]
[326470434,1714960243048,-414.53,0.00015664,2]
[326470435,1714960243058,-1778.81,0.00015664,2]
[326470436,1714960243068,-326.18,0.00015669,2]
[326470437,1714960243078,-323.02,0.00015669,2]
[326470438,1714960243088,-163.09,0.00015669,2]
[326470439,1714960243100,-1045.66,0.00015669,2]
[326470440,1714960243112,-287.16,0.00015669,2]
[326470441,1714960243121,-167.0,0.00015831,2]
[326470442,1714960243131,-167.0,0.00015831,2]
[326470443,1714960243141,-170.4,0.00015908,2]
[326470444,1714960243151,-264.97139769,0.00016,2]
[326470445,1714960243162,-185.71,0.00016101,2]
[326470446,1714960243173,-415.224391,0.00016169,2]
[326470447,1714960243184,-33132.12244875,0.00016169,2]
[326470448,1714960243194,-150.44,0.00016199,2]
[326470449,1714960243204,-150.44,0.00016199,2]
[326470450,1714960243214,-2301.0,0.00016209,2]
[326470451,1714960243224,-971.0,0.00016209,2]
[326470452,1714960243233,-463.0,0.00016209,2]
[326470453,1714960243243,-1397.0,0.00016209,2]
[326470454,1714960243253,-1227.0,0.00016209,2]
[326470455,1714960243265,-1259.0,0.00016209,2]
[326470456,1714960243275,-543.0,0.00016209,2]
[326470457,1714960243284,-611.0,0.00016209,2]
[326470458,1714960243294,-808.0,0.00016209,2]
[326470459,1714960243304,-1787.0,0.00016209,2]
[326470460,1714960243314,-438.0,0.00016209,2]
[326470461,1714960243324,-1477.0,0.00016209,2]
[326470462,1714960243333,-2451.0,0.00016209,2]
[326470463,1714960243344,-421.0,0.00016209,2]
[326470464,1714960243356,-150.0,0.00016209,2]
[326470465,1714960243366,-150.0,0.00016209,2]
[326470466,1714960243376,-1139.0,0.00016209,2]
[326470467,1714960243386,-215.0,0.00016209,2]
[326470468,1714960243396,-444.0,0.00016209,2]
[326470469,1714960243405,-1644.0,0.00016209,2]
[326470470,1714960243414,-3152.0,0.00016209,2]
[326470471,1714960243424,-288.0,0.00016209,2]
[326470472,1714960243439,-37783.0,0.00016209,2]
[326470473,1714960243449,-2294.0,0.00016209,2]
[326470474,1714960243459,-5742.0,0.00016209,2]
[326470475,1714960243468,-5904.0,0.00016209,2]
[326470476,1714960243478,-150.0,0.00016209,2]
[326470477,1714960243487,-150.0,0.00016209,2]
[326470478,1714960243497,-150.0,0.00016209,2]
[326470479,1714960243514,-163.09,0.00016212,2]
[326470480,1714960243524,-389.7,0.00016212,2]
[326470481,1714960243534,-860.0,0.000163,2]
[326470482,1714960243544,-328.71,0.00016363,2]
[326470483,1714960243553,-5564.0,0.000164,2]
[326470484,1714960243563,-2075.81,0.00016438,2]
[326470485,1714960243573,-300.0,0.00016438,2]
[326470486,1714960243585,-1225.21326046,0.000165,2]
[326470487,1714960243596,-272.701,0.00016605,2]
[326470488,1714960243605,-234.895,0.00016605,2]
[326470489,1714960243615,-275.0,0.00016605,2]
[326470490,1714960243624,-150.824,0.00016605,2]
[326470491,1714960243633,-282.125,0.00016605,2]
[326470492,1714960243643,-181.955,0.00016605,2]
[326470493,1714960243653,-150.83,0.00016605,2]
[326470494,1714960243666,-165.0,0.00016605,2]
[326470495,1714960243676,-151.875,0.00016605,2]
[326470496,1714960243687,-245.683,0.00016605,2]
[326470497,1714960243696,-182.29,0.00016712,2]
[326470498,1714960243706,-1007.7219611,0.00016852,2]
[326470499,1714960243716,-179.38501135,0.000169,2]
[326470500,1714960243726,-1749.5315646,0.00017,2]
[326470501,1714960243735,-167.0,0.00017137,2]
[326470502,1714960243750,-167.0,0.00017137,2]
[326470503,1714960243759,-671.29,0.00017282,2]
[326470504,1714960243769,-731.88,0.00017325,2]
[326470505,1714960243778,-150.0,0.00017325,2]
[326470506,1714960243789,-710.61,0.00017325,2]
[326470507,1714960243799,-150.0,0.00017325,2]
[326470508,1714960243808,-150.0,0.00017325,2]
[326470509,1714960243820,-150.0,0.00017325,2]
[326470510,1714960243830,-152.0,0.00017344,3]
[326470511,1714960243841,-4937.03461837,0.00017399,2]
[326470512,1714960243851,-170.4,0.00017498,2]
[326470513,1714960243861,-152.0,0.00017605,4]
[326470514,1714960243870,-1500.0,0.00017626,2]
[326470515,1714960243881,-185.71,0.00017711,2]
[326470516,1714960243891,-150.44,0.00017794,2]
[326470517,1714960243904,-33132.12244875,0.00017804,2]
[326470518,1714960243915,-151.0,0.00017809,2]
[326470519,1714960243925,-328.71,0.00017851,2]
[326470520,1714960243937,-163.09,0.00017856,2]
[326470521,1714960243947,-152.0,0.00017865,5]
[326470522,1714960243956,-151.0,0.0001787,2]
[326470523,1714960243966,-247.2906,0.0001787,2]
[326470524,1714960243982,-247.2906,0.0001787,2]
[326470525,1714960243992,-150.44,0.0001787,2]
[326470526,1714960244002,-26677.99126735,0.0001788,2]
[326470527,1714960244012,-26677.99126733,0.0001788,2]
[326470528,1714960244021,-26677.99126733,0.0001788,2]
[326470529,1714960244031,-6320.99476658,0.0001788,2]
[326470530,1714960244040,-6320.99476653,0.0001788,2]
[326470531,1714960244056,-6320.99476653,0.0001788,2]
[326470532,1714960244067,-310.71443725,0.00017976,2]
[326470533,1714960244077,-450.0,0.00018,3]
[326470534,1714960244087,-3000.0,0.00018,2]
[326470535,1714960244097,-232.0,0.0001812,2]
[326470536,1714960244107,-152.0,0.00018126,6]
[326470537,1714960244117,-163.09,0.00018206,2]
[326470538,1714960244127,-419.34,0.00018206,2]
[326470539,1714960244138,-214.98,0.00018206,2]
[326470540,1714960244149,-150.0,0.00018206,2]
[326470541,1714960244159,-388.17,0.00018206,2]
[326470542,1714960244169,-150.0,0.00018206,2]
[326470543,1714960244179,-163.09,0.00018206,2]
[326470544,1714960244191,-150.0,0.00018206,2]
[326470545,1714960244200,-522.83,0.00018206,2]
[326470546,1714960244210,-150.0,0.00018206,2]
[326470547,1714960244221,-522.83,0.00018206,2]
[326470548,1714960244232,-150.0,0.00018206,2]
[326470549,1714960244242,-150.0,0.00018206,2]
[326470550,1714960244251,-522.11,0.00018206,2]
[326470551,1714960244261,-150.0,0.00018206,2]
[326470552,1714960244271,-150.0,0.00018206,2]
[326470553,1714960244280,-325.49,0.00018206,2]
[326470554,1714960244290,-166.26,0.00018206,2]
[326470555,1714960244301,-158.12410264,0.00018233,2]
[326470556,1714960244315,-152.0,0.00018386,7]
[326470557,1714960244325,-167.0,0.00018444,2]
[326470558,1714960244334,-167.0,0.00018444,2]
[326470559,1714960244344,-1000.0,0.00018536,2]
[326470560,1714960244354,-911.93,0.00018541,2]
[326470561,1714960244363,-150.44,0.00018626,2]
[326470562,1714960244373,-151.0,0.00018636,2]
[326470563,1714960244383,-26677.99126733,0.00018636,2]
[326470564,1714960244396,-152.0,0.00018647,8]
[326470565,1714960244406,-152.0,0.00018907,9]
[326470566,1714960244415,-1500.0,0.00018923,2]
[326470567,1714960244425,-1000.0,0.00018925,2]
[326470568,1714960244435,-232.0,0.0001897,2]
[326470569,1714960244444,-23366.52308397,0.00019,5]
[326470570,1714960244453,-671.29,0.00019011,2]
[326470571,1714960244463,-170.4,0.00019089,2]
[326470572,1714960244476,-325.63,0.00019101,2]
[326470573,1714960244486,-1500.0,0.00019119,2]
[326470574,1714960244496,-151.0,0.00019149,2]
[326470575,1714960244506,-247.2906,0.00019149,2]
[326470576,1714960244515,-247.2906,0.00019149,2]
[326470577,1714960244525,-10000.0,0.00019149,2]
[326470578,1714960244535,-152.0,0.00019168,10]
[326470579,1714960244545,-162.76,0.00019178,2]
[326470580,1714960244559,-152.81,0.00019178,2]
[326470581,1714960244569,-167.8,0.00019178,2]
[326470582,1714960244579,-150.44,0.00019186,2]